bitfinex/quotes_ETHUSD_20250603
["timestamp","ask_amount","ask_price","bid_price","bid_amount"]
[1748911692091,0.8066,2617.9,2617.1,0.41825132]
[1748911692295,3.82087727,2617.2,2617.1,0.41825132]
[1748911692446,0.04766711,2617.6,2617.1,0.02]
[1748911692648,5.137,2617.5,2617.1,0.02]
[1748911692880,0.04766711,2617.4,2617.1,0.02]
[1748911693063,0.04766711,2617.4,2616.7,3.8215992]
[1748911693064,0.04766711,2617.7,2616.9,0.7924]
[1748911693387,4.08766711,2617.7,2616.9,0.7924]
[1748911693882,0.04766711,2617.8,2617.2,6.52580283]
[1748911694105,3.86767059,2617.8,2617.1,3.82092848]
[1748911694395,3.86777768,2617.8,2617.1,5.31703757]
[1748911694689,0.7528,2618.5,2617.7,3.82014745]
[1748911694846,3.86692713,2618.4,2617.5,10.34621783]
[1748911695043,0.04766711,2618.4,2617.8,4.59389303]
[1748911695352,3.81946165,2618.2,2617.8,0.7739]
[1748911695553,0.04766711,2618.1,2617.8,0.7739]
[1748911695781,0.04766711,2618.3,2617.8,0.7739]
[1748911696511,3.81942345,2618.2,2617.8,0.7739]
[1748911696692,0.04766711,2618.1,2617.8,0.7739]
[1748911696998,0.04766711,2618.4,2617.8,4.63199051]
[1748911697312,0.7557,2618.8,2617.9,0.03819586]
[1748911697452,3.86644692,2618.7,2618.0,3.81962053]
[1748911697642,3.86644692,2618.7,2618.1,3.81953717]
[1748911697859,3.86644692,2618.7,2618.0,3.81965679]
[1748911698107,3.86644692,2618.7,2618.0,4.33003298]
[1748911698397,0.04766711,2618.7,2618.1,3.81952311]
[1748911698603,0.04766711,2618.7,2618.2,3.81932419]
[1748911698805,3.86632809,2618.8,2618.1,3.81946239]
[1748911698987,3.86632809,2618.8,2618.1,3.8195638]
[1748911699198,3.86632809,2618.8,2618.1,4.63452837]
[1748911699600,8.04766711,2618.8,2617.8,1.61911572]
[1748911699765,3.81957244,2618.1,2617.8,0.7739]
[1748911699970,4.041,2618.3,2617.8,0.7739]
[1748911700160,0.04766711,2618.2,2617.8,0.7739]
[1748911700366,4.041,2618.3,2617.8,0.7739]
[1748911700367,0.04766711,2618.3,2617.8,0.7739]
[1748911700981,0.04766711,2618.3,2617.8,4.59388764]
[1748911701178,0.83845548,2618.3,2617.8,4.59388764]
[1748911701365,1.098,2619.0,2617.9,6.56399911]
[1748911701594,1.098,2619.0,2618.4,0.8112]
[1748911701801,1.098,2619.0,2618.5,3.81895075]
[1748911701976,1.06312957,2619.4,2618.8,3.81854284]
[1748911701977,0.21396246,2619.4,2618.8,3.81854284]
[1748911702179,0.26162957,2619.4,2618.8,0.8112]
[1748911702405,3.81786199,2619.3,2618.8,0.8112]
[1748911702627,0.04766711,2619.2,2618.8,0.8112]
[1748911702791,0.26162957,2619.4,2618.8,4.62974284]
[1748911702986,4.25496246,2619.4,2618.8,4.62974284]
[1748911703288,0.04766711,2619.3,2618.8,4.62974284]
[1748911704023,4.25496246,2619.4,2618.8,4.66792354]
[1748911704193,4.30262957,2619.4,2618.8,4.66792354]
[1748911704366,4.30262957,2619.4,2618.8,4.6679241]
[1748911704709,0.21396246,2619.4,2618.8,11.62233808]
[1748911705181,0.21396246,2619.4,2618.8,19.62233808]
[1748911705602,0.21396246,2619.4,2618.8,13.09653525]
[1748911709746,0.21396246,2619.4,2618.8,13.48176842]
[1748911710447,0.21396246,2619.4,2618.8,14.03176842]
[1748911711576,0.21396246,2619.4,2618.8,18.03176842]
[1748911712960,0.21396246,2619.4,2618.8,18.07076842]
[1748911714958,0.21396246,2619.4,2618.8,18.80176842]
[1748911715176,0.21396246,2619.4,2618.8,22.83976842]
[1748911715782,0.21396246,2619.4,2618.8,9.78497601]
[1748911715961,1.00236246,2619.4,2618.8,5.5812]
[1748911716275,1.00236246,2619.4,2618.8,9.39974284]
[1748911717443,1.00236246,2619.4,2617.9,4.77]
[1748911717626,3.81801326,2619.2,2618.6,3.81881816]
[1748911717830,0.04766711,2619.1,2618.6,3.81881816]
[1748911718431,0.04766711,2619.1,2618.6,3.81875403]
[1748911718632,0.7781,2618.8,2618.1,4.7562]
[1748911718854,0.04766711,2618.7,2618.1,0.7562]
[1748911719070,4.59667139,2618.8,2618.1,0.7562]
[1748911719071,0.7781,2618.8,2618.2,0.03818984]
[1748911719273,0.7781,2618.8,2618.2,3.85758185]
[1748911719478,0.7781,2618.8,2618.5,3.81895915]
[1748911719644,0.7781,2618.8,2618.5,3.81895925]
[1748911719844,0.7781,2618.8,2618.4,3.81907586]
[1748911720171,0.02,2618.9,2618.6,3.81883449]
[1748911720385,0.02,2618.9,2618.7,3.81860174]
[1748911720755,0.02,2618.9,2618.8,3.81854284]
[1748911721692,0.02,2618.9,2618.8,11.17404567]
[1748911722043,0.02,2618.9,2618.8,19.55229373]
[1748911722362,0.02,2618.9,2618.8,21.51114331]
[1748911724485,0.02,2618.9,2618.8,25.54814331]
[1748911725350,0.02,2618.9,2618.8,25.92435175]
[1748911725549,0.02,2618.9,2618.8,26.47435175]
[1748911725755,0.21396246,2619.4,2619.3,18.34361674]
[1748911725954,0.21396246,2619.4,2619.3,19.67413832]
[1748911728182,0.21396246,2619.4,2619.3,15.72691968]
[1748911734367,0.21396246,2619.4,2619.3,11.81781391]
[1748911735470,0.21396246,2619.4,2619.3,18.34361674]
[1748911738811,0.21396246,2619.4,2619.3,19.16181674]
[1748911740307,0.21396246,2619.4,2619.3,19.71181674]
[1748911740516,0.02,2619.9,2619.8,3.81708527]
[1748911740701,0.02,2619.9,2619.8,19.52479663]
[1748911741102,0.42910906,2620.4,2620.3,3.8163569]
[1748911741278,0.42910906,2620.4,2620.1,3.81654251]
[1748911741478,0.42910906,2620.4,2620.2,0.42055287]
[1748911741695,0.42910906,2620.4,2620.3,3.8163569]
[1748911742011,0.42910906,2620.4,2620.3,4.02662329]
[1748911742612,0.42910906,2620.4,2620.3,4.02647318]
[1748911742778,0.42910906,2620.4,2620.3,4.02647638]
[1748911742984,0.42910906,2620.4,2620.2,3.81648507]
[1748911743387,0.42910906,2620.4,2620.3,0.21011155]
[1748911743714,0.42910906,2620.4,2620.3,0.42023082]
[1748911744386,0.42910906,2620.4,2620.3,4.23658772]
[1748911744714,0.42910906,2620.4,2620.3,0.42023082]
[1748911744914,1.64648672,2620.4,2620.3,0.42023082]
[1748911745452,0.42910906,2620.4,2620.3,4.44679756]
[1748911745629,0.42910906,2620.4,2620.3,4.69517683]
[1748911745805,0.42910906,2620.4,2620.3,4.86709713]
[1748911746730,0.42910906,2620.4,2620.3,12.90525229]
[1748911746931,0.42910906,2620.4,2620.3,12.86709713]
[1748911747135,0.42910906,2620.4,2620.3,16.02583532]
[1748911747339,0.42910906,2620.4,2620.3,15.47583532]
[1748911747636,0.42910906,2620.4,2620.3,26.03461832]
[1748911747835,0.42910906,2620.4,2620.3,25.82481841]
[1748911747995,0.42910906,2620.4,2620.3,26.4252517]
[1748911748736,0.42910906,2620.4,2620.3,26.84488892]
[1748911750449,0.42910906,2620.4,2620.3,27.05476707]
[1748911751235,0.42910906,2620.4,2620.3,27.26468837]
[1748911752144,0.42910906,2620.4,2620.3,27.05476707]
[1748911752968,0.42910906,2620.4,2620.3,23.02176707]
[1748911753722,0.42910906,2620.4,2620.3,23.23243967]
[1748911754675,0.42910906,2620.4,2620.3,14.51849412]
[1748911754966,0.42910906,2620.4,2620.3,21.04429695]
[1748911755917,0.42910906,2620.4,2620.3,21.25505886]
[1748911758040,0.42910906,2620.4,2620.3,2.52228397]
[1748911758441,5.01572032,2620.4,2620.3,2.73310083]
[1748911758761,5.94656634,2620.4,2620.3,2.73310083]
[1748911759075,5.94656634,2620.4,2620.3,2.52228397]
[1748911759076,14.49656634,2620.4,2620.3,2.52228397]
[1748911759277,14.44889923,2620.4,2620.3,2.52228397]
[1748911760865,13.89889923,2620.4,2620.3,2.52228397]
[1748911761067,2.08268797,2620.4,2620.3,2.52228397]
[1748911761287,1.19950906,2620.4,2620.3,2.73338668]
[1748911761578,1.19950906,2620.4,2620.3,2.52228397]
[1748911761787,1.19950906,2620.4,2620.3,2.73373331]
[1748911761989,1.19950906,2620.4,2620.3,2.52228397]
[1748911762165,1.19950906,2620.4,2620.3,2.73372815]
[1748911762793,1.19950906,2620.4,2620.3,2.94517208]
[1748911762954,1.19950906,2620.4,2620.3,2.73372815]
[1748911765675,0.42910906,2620.4,2620.3,2.73372815]
[1748911765896,0.42910906,2620.4,2620.3,6.55008505]
[1748911766074,0.42910906,2620.4,2620.3,7.20890986]
[1748911766274,0.42910906,2620.4,2620.3,6.55008505]
[1748911766674,0.42910906,2620.4,2620.3,6.58824631]
[1748911766896,0.42910906,2620.4,2620.3,6.55008505]
[1748911767872,0.42910906,2620.4,2620.3,6.58824471]
[1748911768483,0.42910906,2620.4,2620.3,21.11404754]
[1748911768783,0.42910906,2620.4,2620.3,21.07588788]
[1748911773170,0.42910906,2620.4,2620.3,22.42028788]
[1748911773371,0.02,2620.9,2620.8,11.13583164]
[1748911773583,0.02,2620.9,2620.8,23.16483164]
[1748911775708,0.02,2620.9,2620.8,23.5465119]
[1748911777484,0.02,2620.9,2620.8,18.7231119]
[1748911777684,0.02,2620.9,2620.8,11.81562881]
[1748911779476,0.02,2620.9,2620.7,3.81571137]
[1748911780193,0.02,2620.9,2620.6,4.77]
[1748911780397,0.02,2620.9,2620.6,8.58591437]
[1748911780577,0.02,2620.9,2620.7,3.81577441]
[1748911781324,0.02,2620.9,2620.8,3.81562881]
[1748911784101,0.02,2620.9,2620.8,4.62004507]
[1748911785309,0.02,2620.9,2620.8,3.81562881]
[1748911787719,0.02,2620.9,2620.4,6.52580283]
[1748911787909,0.02,2620.9,2620.6,3.8159182]
[1748911788115,0.02,2620.9,2620.8,3.81562881]
[1748911788317,0.02,2620.9,2620.5,8.03815413]
[1748911788478,0.02,2620.9,2620.5,10.14954139]
[1748911788677,0.02,2620.9,2620.5,10.11138726]
[1748911788879,0.02,2620.9,2620.8,3.81562881]
[1748911789115,0.02,2620.9,2620.6,3.81591409]
[1748911789328,0.02,2620.9,2620.8,3.81562881]
[1748911790724,0.02,2620.9,2620.7,3.81571735]
[1748911791311,0.02,2620.9,2620.6,3.81585545]
[1748911791621,0.02,2620.9,2620.3,2.73372815]
[1748911791622,0.7749,2620.8,2620.3,2.73372815]
[1748911791940,0.51347658,2620.7,2620.3,2.73372815]
[1748911792079,0.46580947,2620.7,2620.4,3.8161235]
[1748911792284,4.84956711,2620.8,2620.3,2.73372815]
[1748911792485,4.8019,2620.8,2620.5,3.81597399]
[1748911792916,4.8019,2620.8,2620.3,2.73372815]
[1748911793089,4.8019,2620.8,2620.6,3.81579102]
[1748911793294,4.8019,2620.8,2620.7,3.81577441]
[1748911793822,4.8019,2620.8,2620.6,3.81582118]
[1748911794021,4.8019,2620.8,2620.5,3.81601183]
[1748911794223,4.8019,2620.8,2620.7,3.81577441]
[1748911794386,0.02,2620.9,2620.8,3.81562881]
[1748911794588,0.02,2620.9,2620.8,0.76314032]
[1748911794803,0.02,2620.9,2620.6,3.81589688]
[1748911795005,0.8267,2620.8,2620.6,3.81589688]
[1748911795284,0.8267,2620.8,2620.6,3.81588646]
[1748911795711,0.8267,2620.8,2620.3,2.73372815]
[1748911795912,0.8267,2620.8,2620.4,3.81612237]
[1748911796829,1.29767557,2620.8,2620.4,3.81615889]
[1748911798434,1.29767557,2620.8,2620.3,2.73372815]
[1748911798435,1.29767557,2620.8,2620.3,6.55006674]
[1748911798642,1.34534268,2620.8,2620.3,6.55007413]
[1748911798792,0.87436711,2620.8,2620.3,6.55007413]
[1748911798993,0.8267,2620.8,2620.5,3.81605093]
[1748911799232,0.8267,2620.8,2620.4,3.81616985]
[1748911799590,0.8267,2620.8,2620.5,3.81605927]
[1748911800233,0.8267,2620.8,2620.4,3.81614709]
[1748911800399,1.29767469,2620.8,2620.3,6.55005569]
[1748911800597,0.04766711,2620.7,2620.3,2.73372815]
[1748911800935,0.8267,2620.8,2620.6,3.81592001]
[1748911801135,0.8267,2620.8,2620.4,3.81621126]
[1748911801441,0.8267,2620.8,2620.2,0.03816012]
[1748911801637,0.8267,2620.8,2620.3,3.8163569]
[1748911801847,0.8267,2620.8,2620.6,3.8159122]
[1748911802055,0.8267,2620.8,2620.4,3.85431215]
[1748911802548,0.8267,2620.8,2620.5,3.81597158]
[1748911802752,0.8267,2620.8,2620.4,3.81613246]
[1748911803269,0.02,2620.9,2620.7,7.30795962]
[1748911803407,0.02,2620.9,2620.8,3.85378456]
[1748911804012,0.02,2620.9,2620.8,0.03815575]
[1748911804210,0.02,2620.9,2620.7,3.49218521]
[1748911804542,0.02,2620.9,2620.7,7.3079581]
[1748911806218,0.02,2620.9,2620.7,3.49218521]
[1748911806429,0.02,2620.9,2620.6,3.81586249]
[1748911806629,0.02,2620.9,2620.7,3.81577397]
[1748911806915,0.02,2620.9,2620.6,3.81587895]
[1748911807116,0.02,2620.9,2620.7,7.30795729]
[1748911807316,0.02,2620.9,2620.8,3.81562881]
[1748911808021,0.02,2620.9,2620.8,5.74919756]
[1748911808355,0.7974,2621.4,2621.1,3.81518377]
[1748911808655,1.4596,2622.5,2621.8,3.81417346]
[1748911808952,0.6667,2622.5,2622.4,16.070886]
[1748911811058,0.6667,2622.5,2622.4,16.45564509]
[1748911811264,0.6667,2622.5,2622.4,19.47150413]
[1748911811675,0.6667,2622.5,2622.1,4.59741419]
[1748911811973,0.6667,2622.5,2622.4,3.81330079]
[1748911812266,0.6667,2622.5,2622.4,4.19933468]
[1748911813367,0.6667,2622.5,2622.4,5.65141716]
[1748911814264,0.6667,2622.5,2622.4,4.19933468]
[1748911815375,0.6667,2622.5,2621.7,3.8141797]
[1748911815559,0.6667,2622.5,2621.8,10.32213094]
[1748911815734,0.6667,2622.5,2621.9,11.81392491]
[1748911815939,0.6667,2622.5,2622.0,3.81376734]
[1748911816139,0.6667,2622.5,2622.2,3.81350746]
[1748911816340,0.6667,2622.5,2622.1,6.50804425]
[1748911816577,0.6667,2622.5,2622.1,10.32177581]
[1748911817875,0.6667,2622.5,2622.1,6.50804425]
[1748911818281,0.6667,2622.5,2621.6,0.8105]
[1748911818493,3.813827,2622.1,2621.7,4.0]
[1748911818790,3.86132121,2622.2,2621.6,6.50804425]
[1748911818982,3.86115645,2622.3,2621.7,3.85245521]
[1748911819296,0.46243565,2622.2,2621.6,6.50804425]
[1748911819452,0.46243565,2622.2,2621.7,3.81430846]
[1748911819654,4.27603913,2622.2,2621.6,10.32245453]
[1748911820793,0.46243565,2622.2,2621.7,3.81431895]
[1748911820996,4.32372095,2622.2,2621.6,10.32246279]
[1748911821896,4.27605384,2622.2,2621.6,10.32246279]
[1748911822598,4.32372095,2622.2,2621.6,10.32246279]
[1748911823194,0.46243565,2622.2,2621.6,6.50804425]
[1748911823399,4.27603005,2622.2,2621.6,10.32237735]
[1748911823600,3.81383767,2622.1,2621.6,6.50804425]
[1748911823892,4.3237437,2622.2,2621.6,10.3224895]
[1748911824056,0.51010276,2622.2,2621.7,3.81431086]
[1748911824255,0.46243565,2622.2,2621.7,3.81431086]
[1748911824467,0.46243565,2622.2,2621.6,10.32248226]
[1748911824913,4.27606756,2622.2,2621.6,10.32248226]
[1748911825398,0.82980676,2622.1,2621.6,10.32248226]
[1748911826311,4.64356072,2622.1,2621.6,10.32248226]
[1748911826512,0.82980676,2622.1,2621.6,10.32248226]
[1748911828310,4.64355784,2622.1,2621.6,10.32248226]
[1748911828518,4.64356462,2622.1,2621.6,6.50804425]
[1748911828811,4.64356462,2622.1,2621.6,10.32249183]
[1748911829216,3.81417346,2621.8,2621.2,8.0]
[1748911829417,0.8099,2621.6,2621.3,4.0]
[1748911829619,4.06866711,2621.5,2620.7,6.50804425]
[1748911829819,8.70494205,2621.5,2621.0,3.8152807]
[1748911830004,4.6251241,2621.1,2620.7,6.88575654]
[1748911830190,0.04766711,2621.0,2620.4,6.50804425]
[1748911830389,0.04766711,2621.0,2620.5,4.0]
[1748911830592,0.04766711,2621.0,2620.6,0.8281]
[1748911830792,0.8099,2621.4,2620.9,6.50804425]
[1748911830980,4.67232915,2621.4,2620.9,6.50804425]
[1748911831716,0.85756711,2621.4,2620.5,10.88335534]
[1748911831926,0.7887,2620.9,2620.2,10.32450404]
[1748911832131,0.7887,2620.9,2620.4,3.8161032]
[1748911832627,0.7887,2620.9,2620.5,3.81604867]
[1748911832822,0.7887,2620.9,2620.5,6.50804425]
[1748911833200,0.7887,2620.9,2620.5,10.32405661]
[1748911834133,0.7887,2620.9,2620.6,3.81583552]
[1748911835437,1.27443671,2620.9,2620.5,10.32406661]
[1748911835741,1.27443671,2620.9,2620.5,3.81602236]
[1748911836134,1.27443671,2620.9,2620.6,3.81590182]
[1748911836332,0.7616,2621.6,2620.7,6.50804425]
[1748911836537,4.06966711,2621.5,2620.8,3.81562881]
[1748911836905,0.04766711,2621.5,2620.7,6.50804425]
[1748911837118,4.022,2621.4,2621.1,3.81516303]
[1748911837438,0.48312671,2621.4,2621.2,3.81496271]
[1748911837647,0.80926711,2621.6,2621.2,3.81496271]
[1748911837937,0.7616,2621.6,2621.3,3.81487881]
[1748911838141,0.7616,2621.6,2621.4,3.81462347]
[1748911838314,0.7616,2621.6,2621.2,3.81493878]
[1748911838315,0.7616,2621.6,2621.3,3.81485904]
[1748911838515,0.7616,2621.6,2621.4,3.81473346]
[1748911839113,0.7616,2621.6,2621.3,3.81484058]
[1748911839854,0.04766711,2621.8,2621.3,3.81484058]
[1748911839855,0.8269,2621.8,2621.5,3.81460995]
[1748911840216,0.8269,2621.8,2621.3,6.50804425]
[1748911840714,5.33813769,2621.8,2621.2,3.81500933]
[1748911841552,1.52388382,2621.8,2621.1,0.03814714]
[1748911841726,1.52388382,2621.8,2621.1,6.54619139]
[1748911841926,1.52388382,2621.8,2621.4,3.81461696]
[1748911842143,5.33806418,2621.8,2621.3,3.81486866]
[1748911842345,1.04460642,2621.7,2621.2,3.8149696]
[1748911842527,0.8189,2621.6,2620.6,0.8249]
[1748911842736,0.8189,2621.1,2620.8,4.0]
[1748911842929,0.8189,2621.1,2620.3,7.33294425]
[1748911843131,0.8189,2621.1,2621.0,3.81533765]
[1748911843454,4.7917,2621.3,2621.1,3.81516975]
[1748911843661,4.7917,2621.3,2621.2,3.81504654]
[1748911843952,0.7707,2621.3,2621.2,3.81504654]
[1748911844122,0.7742,2621.6,2621.5,3.81460995]
[1748911844320,0.7742,2622.1,2622.0,3.81388253]
[1748911844627,0.7742,2622.1,2621.8,3.81417346]
[1748911844828,0.7742,2622.1,2621.6,3.85248684]
[1748911845029,0.7742,2622.1,2621.6,0.03813988]
[1748911845265,0.7742,2622.1,2621.9,3.81394295]
[1748911845444,0.7742,2622.1,2622.0,3.81388253]
[1748911845955,0.8159,2622.3,2621.8,10.32211663]
[1748911846361,0.8159,2622.3,2621.9,3.81400487]
[1748911847069,0.8159,2622.3,2621.8,6.50804425]
[1748911847275,0.8159,2622.3,2621.9,3.81394031]
[1748911848122,0.8159,2622.3,2621.8,10.97297037]
[1748911848327,0.8159,2622.3,2621.9,3.81402117]
[1748911849270,0.8159,2622.3,2621.8,6.50804425]
[1748911849469,0.8159,2622.3,2622.1,3.81372609]
[1748911849764,0.6667,2622.5,2622.4,3.81330079]
[1748911850461,0.6667,2622.5,2622.3,3.81341778]
[1748911850964,0.6667,2622.5,2622.4,3.81330079]
[1748911852883,0.6667,2622.5,2622.2,3.81348183]
[1748911853188,0.6667,2622.5,2622.2,3.81359164]
[1748911853546,0.6667,2622.5,2622.4,3.81330079]
[1748911853947,0.6667,2622.5,2622.4,11.08401894]
[1748911856181,0.6667,2622.5,2622.4,10.32134504]
[1748911857996,0.6667,2622.5,2622.4,19.62544504]
[1748911858175,0.6667,2622.5,2622.4,24.39544504]
[1748911859887,0.6667,2622.5,2622.4,12.77]
[1748911860087,0.6667,2622.5,2622.4,16.58330079]
[1748911862512,0.6667,2622.5,2622.4,8.58330079]
[1748911863016,0.6667,2622.5,2622.4,3.81330079]
[1748911864333,0.6667,2622.5,2622.4,19.8887317]
[1748911864482,0.6667,2622.5,2622.4,20.4387317]
[1748911864877,0.6667,2622.5,2622.4,24.4387317]
[1748911865718,0.6667,2622.5,2622.4,7.81330079]
[1748911865921,0.6667,2622.5,2622.4,7.8514294]
[1748911866106,0.6667,2622.5,2622.4,17.17562526]
[1748911866431,0.6667,2622.5,2622.4,17.13750079]
[1748911867842,0.6667,2622.5,2622.4,12.58750079]
[1748911868021,0.6667,2622.5,2622.4,11.81330079]
[1748911869009,0.6667,2622.5,2622.4,3.81330079]
[1748911869523,3.81353179,2622.3,2621.7,3.81424044]
[1748911869739,0.04766711,2622.2,2621.7,3.81431895]
[1748911869920,1.35675586,2622.3,2621.6,0.37377298]
[1748911870125,0.04766711,2622.3,2621.8,3.81405669]
[1748911870510,3.81399975,2622.0,2621.4,3.81466045]
[1748911870710,0.8244,2621.8,2621.5,3.81450283]
[1748911870996,0.8244,2621.8,2621.4,3.81472641]
[1748911871201,0.8244,2621.8,2621.5,3.81460137]
[1748911871634,0.8244,2621.8,2621.4,3.81472433]
[1748911871939,3.81451668,2621.6,2621.0,3.81523048]
[1748911872114,3.81481312,2621.4,2620.8,3.81557038]
[1748911872315,0.7549,2621.2,2620.5,8.36444425]
[1748911872526,0.7549,2621.2,2620.6,0.03815087]
[1748911872730,0.7549,2621.2,2620.6,0.88112038]
[1748911872931,0.7678,2621.5,2620.8,6.50804425]
[1748911873094,0.7678,2621.5,2620.6,8.88112038]
[1748911873095,0.7678,2621.5,2621.3,3.81488362]
[1748911874034,0.7678,2621.5,2621.2,3.81504244]
[1748911874735,4.06466711,2621.8,2621.1,6.50804425]
[1748911874736,0.7662,2621.7,2621.3,3.8148139]
[1748911875038,0.7662,2621.7,2621.4,3.81467255]
[1748911875221,0.7662,2621.7,2621.3,3.81484258]
[1748911876055,0.7662,2621.7,2620.8,14.50804425]
[1748911876259,0.7736,2621.4,2620.9,4.0]
[1748911876557,4.83826711,2621.4,2620.9,4.0]
[1748911876844,4.83826711,2621.4,2620.8,3.81562881]
[1748911877172,4.83826711,2621.4,2620.9,3.81546096]
[1748911877387,8.653034,2621.4,2620.6,8.0]
[1748911877551,1.6964034,2621.3,2620.7,7.85391902]
[1748911877870,1.6964034,2621.3,2620.9,3.81547581]
[1748911878073,1.6964034,2621.3,2620.7,3.85391902]
[1748911878280,1.6964034,2621.3,2620.8,3.81562881]
[1748911878450,1.74407051,2621.3,2620.8,3.81551628]
[1748911878784,0.8311,2622.1,2622.0,3.81388253]
[1748911878939,0.8311,2622.1,2621.8,3.81413084]
[1748911879967,0.8311,2622.1,2621.7,0.03813763]
[1748911880174,0.8311,2622.1,2621.9,3.81388876]
[1748911880645,0.8311,2622.1,2621.6,10.70175962]
[1748911880869,0.8311,2622.1,2621.6,6.50804425]
[1748911881067,0.8311,2622.1,2621.8,3.81408927]
[1748911881284,0.8311,2622.1,2622.0,3.81388253]
[1748911881587,0.8105,2622.4,2622.0,3.81378413]
[1748911881739,1.74132151,2622.4,2622.0,3.81378413]
[1748911884074,1.74132151,2622.4,2622.0,3.81387114]
[1748911884457,1.74132151,2622.4,2622.0,3.81379265]
[1748911884953,3.81441831,2621.7,2620.9,6.50804425]
[1748911885173,4.52677894,2621.6,2621.2,3.81504267]
[1748911885381,4.06966711,2621.6,2621.2,3.81504267]
[1748911885778,4.06966711,2621.6,2621.2,6.50804425]
[1748911885959,4.023,2621.7,2621.4,3.8146383]
[1748911886540,4.023,2621.7,2621.2,10.3230673]
[1748911886541,4.023,2621.7,2621.3,3.81484187]
[1748911886738,4.023,2621.7,2621.2,6.50804425]
[1748911886739,4.023,2621.7,2621.2,10.32308032]
[1748911886983,0.04766711,2621.6,2621.2,6.50804425]
[1748911887286,0.7567,2621.5,2621.0,3.81520788]
[1748911887446,0.7567,2621.5,2621.1,3.81517676]
[1748911887646,0.7567,2621.5,2621.3,3.81488186]
[1748911888780,0.7567,2621.5,2621.4,3.81475547]
[1748911889087,0.7567,2621.5,2621.2,10.32304389]
[1748911889383,0.7567,2621.5,2621.4,3.81475547]
[1748911889885,0.7857,2622.3,2621.8,3.81410593]
[1748911890086,4.06666711,2622.2,2621.7,3.81424137]
[1748911890290,0.7857,2622.1,2621.6,10.32247477]
[1748911890450,0.7857,2622.1,2621.7,3.81428458]
[1748911890866,4.8047,2622.1,2621.7,3.81428458]
[1748911891577,0.04766711,2622.0,2621.5,3.81456863]
[1748911892650,0.04766711,2622.0,2621.7,3.81422517]
[1748911893494,0.7857,2622.1,2621.9,3.81402799]
[1748911893814,0.7857,2622.1,2621.6,6.50804425]
[1748911893973,0.7857,2622.1,2621.8,3.81417346]
[1748911894858,0.7857,2622.1,2621.7,3.8142523]
[1748911895471,0.7857,2622.1,2621.8,3.81415057]
[1748911895965,0.04766711,2622.0,2621.4,8.0]
[1748911896167,0.7758,2622.0,2621.7,3.81426465]
[1748911896374,0.04766711,2621.9,2621.7,3.81426465]
[1748911896553,0.7758,2622.0,2621.7,3.81426465]
[1748911897589,0.7758,2622.0,2621.5,3.81453372]
[1748911897902,1.28719567,2622.0,2621.4,8.0]
[1748911898196,0.82346711,2622.0,2621.6,3.81443818]
[1748911898492,0.82346711,2622.0,2621.5,3.81459981]
[1748911898682,0.7758,2622.0,2621.9,3.81402799]
[1748911899257,4.018,2622.1,2622.0,3.81388253]
[1748911899458,0.6667,2622.5,2622.4,3.81330079]
[1748911899459,1.4493,2622.5,2622.4,3.81330079]
[1748911899775,0.6667,2622.5,2622.3,10.32142974]
[1748911899958,0.6667,2622.5,2622.4,3.81330079]
[1748911900159,0.6667,2622.5,2622.3,10.32146117]
[1748911900989,0.6667,2622.5,2622.1,3.81369168]
[1748911901191,0.6667,2622.5,2622.0,7.2708353]
[1748911901192,0.6667,2622.5,2622.0,11.08468162]
[1748911901402,0.6667,2622.5,2622.2,3.81356118]
[1748911901699,0.6667,2622.5,2622.4,3.81330079]
[1748911901904,0.6667,2622.5,2622.3,3.81334889]
[1748911902260,0.6667,2622.5,2622.2,3.81356544]
[1748911902667,0.6667,2622.5,2622.4,3.81330079]
[1748911904501,0.6667,2622.5,2622.4,5.53183068]
[1748911904683,0.6667,2622.5,2622.4,13.53183068]
[1748911904877,0.6667,2622.5,2622.4,13.49370185]
[1748911905683,0.6667,2622.5,2622.4,10.47917969]
[1748911905878,0.6667,2622.5,2622.4,15.02917969]
[1748911906093,0.21440594,2622.8,2622.7,3.8128646]
[1748911906272,0.21440594,2622.8,2622.7,10.32090885]
[1748911907081,0.21440594,2622.8,2622.7,3.8128646]
[1748911907725,0.21440594,2622.8,2622.7,11.8128646]
[1748911910106,0.21440594,2622.8,2622.7,3.8128646]
[1748911911875,0.21440594,2622.8,2622.7,3.85098888]
[1748911912514,0.21440594,2622.8,2622.7,3.8128646]
[1748911912676,0.21440594,2622.8,2622.7,5.37926359]
[1748911913213,0.21440594,2622.8,2622.7,5.41738777]
[1748911913906,0.21440594,2622.8,2622.7,3.85098878]
[1748911914112,0.21440594,2622.8,2622.7,3.8128646]
[1748911917006,0.21440594,2622.8,2622.7,10.32090885]
[1748911917403,0.21440594,2622.8,2622.7,18.32090885]
[1748911920143,0.21440594,2622.8,2622.7,22.32090885]
[1748911921315,0.02,2622.9,2622.8,11.81271923]
[1748911921733,0.02,2622.9,2622.8,15.81271923]
[1748911922949,0.02,2622.9,2622.8,11.81271923]
[1748911924144,0.02,2622.9,2622.7,3.81286133]
[1748911924445,0.02,2622.9,2622.8,3.81271923]
[1748911925207,0.02,2622.9,2622.8,4.02408026]
[1748911925503,0.02,2622.9,2622.8,4.02408096]
[1748911925703,0.02,2622.9,2622.8,3.81271923]
[1748911927321,0.02,2622.9,2622.7,10.32085411]
[1748911927714,0.02,2622.9,2622.8,0.21136064]
[1748911927913,0.02,2622.9,2622.8,0.21135962]
[1748911928147,0.02,2622.9,2622.3,5.20572138]
[1748911928148,0.02,2622.9,2622.3,1.19072138]
[1748911928353,3.81302739,2622.6,2622.4,4.0]
[1748911928546,3.81315538,2622.5,2622.4,4.0]
[1748911928856,4.57335538,2622.5,2622.4,4.0]
[1748911929015,0.7602,2622.5,2622.4,4.0]
[1748911929215,0.7602,2622.5,2622.1,3.81373329]
[1748911929526,0.7602,2622.5,2621.8,6.50804425]
[1748911929864,0.7602,2622.5,2621.9,3.81388561]
[1748911930349,0.7602,2622.5,2622.0,3.81387239]
[1748911930528,3.86102069,2622.4,2621.8,10.32216928]
[1748911930723,0.04766711,2622.4,2621.9,4.02567867]
[1748911930924,0.8009,2622.3,2621.8,10.32214926]
[1748911931328,0.8009,2622.3,2621.9,3.81400689]
[1748911931524,0.8009,2622.3,2622.0,0.21176128]
[1748911931724,0.8009,2622.3,2621.9,3.81400689]
[1748911932360,0.8009,2622.3,2622.0,3.81376252]
[1748911933212,0.8009,2622.3,2621.9,3.81396009]
[1748911933412,0.8009,2622.3,2621.9,3.85209627]
[1748911933944,0.8009,2622.3,2622.0,3.81386638]